bitfinex-derivatives/quotes_BTCF0:USTF0_20250929
["timestamp","ask_amount","ask_price","bid_price","bid_amount"]
[1759178963334,0.00344,114400.0,114390.0,1.1725666]
[1759178963529,0.00344,114400.0,114390.0,1.9954866]
[1759178963729,0.00344,114400.0,114390.0,1.1725666]
[1759178963932,0.00344,114400.0,114390.0,1.9954866]
[1759178964131,0.00344,114400.0,114390.0,1.1725666]
[1759178964330,0.00344,114400.0,114390.0,1.9954866]
[1759178964532,0.00344,114400.0,114390.0,1.9954466]
[1759178964930,0.00044,114400.0,114390.0,1.9954466]
[1759178965238,0.01444,114400.0,114390.0,1.9954466]
[1759178966536,0.01444,114400.0,114390.0,1.1725666]
[1759178966938,0.01444,114400.0,114390.0,1.9953666]
[1759178968534,0.03994367,114400.0,114390.0,1.9953666]
[1759178970547,0.03994367,114400.0,114390.0,1.30147546]
[1759178970845,0.03994367,114400.0,114390.0,1.9953666]
[1759178972246,0.03994367,114400.0,114390.0,1.16401854]
[1759178972546,0.03994367,114400.0,114390.0,1.98665854]
[1759178972944,0.03994367,114400.0,114390.0,1.16401854]
[1759178973137,0.03994367,114400.0,114390.0,1.98661854]
[1759178973340,0.16293387,114400.0,114390.0,1.16401854]
[1759178974145,0.16293387,114400.0,114390.0,1.63967297]
[1759178974544,0.07558367,114400.0,114390.0,1.63967297]
[1759178975245,0.07558367,114400.0,114390.0,1.98661854]
[1759178975945,0.07558367,114400.0,114390.0,1.98657854]
[1759178976146,0.16293387,114400.0,114390.0,0.4701274]
[1759178976346,0.16293387,114400.0,114390.0,1.2926474]
[1759178976543,0.16293387,114400.0,114390.0,0.81707297]
[1759178976745,0.07558367,114400.0,114390.0,1.63959297]
[1759178977240,0.50988114,114400.0,114390.0,0.1093274]
[1759178977440,0.50988114,114400.0,114390.0,0.9318074]
[1759178977441,0.87068114,114400.0,114390.0,0.9318074]
[1759178977641,0.50988114,114400.0,114390.0,1.27875297]
[1759178977941,0.16293557,114400.0,114390.0,1.27875297]
[1759178978142,0.07558367,114400.0,114390.0,1.27875297]
[1759178978343,0.03994367,114400.0,114390.0,1.27875297]
[1759178978536,0.03954367,114400.0,114390.0,1.27875297]
[1759178978746,0.07518367,114400.0,114390.0,1.27871297]
[1759178979146,0.07558367,114400.0,114390.0,1.27871297]
[1759178979346,0.07558367,114400.0,114390.0,1.63951297]
[1759178979843,0.03994367,114400.0,114390.0,1.63951297]
[1759178980848,0.03994367,114400.0,114390.0,1.98645854]
[1759178981248,0.03994367,114400.0,114390.0,1.63951297]
[1759178983946,0.03994367,114400.0,114390.0,1.98645854]
[1759178984141,0.03994367,114400.0,114390.0,1.2925674]
[1759178984346,0.05301367,114400.0,114390.0,1.63951297]
[1759178984546,0.05301367,114400.0,114390.0,0.81707297]
[1759178984744,0.07558367,114400.0,114390.0,0.81707297]
[1759178984944,0.07558367,114400.0,114390.0,1.63935297]
[1759178986252,0.07558367,114400.0,114390.0,1.63894857]
[1759178991056,0.07558367,114400.0,114390.0,1.63882857]
[1759178992257,0.07558367,114400.0,114390.0,0.81666857]
[1759178992457,0.07558367,114400.0,114390.0,1.63874857]
[1759178993360,0.07558367,114400.0,114390.0,0.81666857]
[1759178993767,0.16293557,114400.0,114390.0,1.27790857]
[1759178994062,0.16293557,114400.0,114390.0,1.63870857]
[1759178995355,0.52373557,114400.0,114390.0,0.45586857]
[1759178995561,0.56293557,114400.0,114390.0,0.1093274]
[1759178995761,0.92373557,114400.0,114390.0,0.9313274]
[1759178996268,0.95513025,114400.0,114390.0,0.9313274]
[1759178996468,0.92373557,114400.0,114390.0,0.9313274]
[1759178997369,0.83638367,114400.0,114390.0,0.9313274]
[1759178997772,0.83638367,114400.0,114390.0,1.27786857]
[1759178998672,0.07558367,114400.0,114390.0,1.63866857]
[1759179001166,0.03994367,114400.0,114390.0,1.63866857]
[1759179001968,0.03954367,114400.0,114390.0,1.63866857]
[1759179002269,0.03994367,114400.0,114390.0,1.63866857]
[1759179003473,0.03994367,114400.0,114390.0,1.2921274]
[1759179003670,0.03994367,114400.0,114390.0,1.63866857]
[1759179003878,0.01444,114400.0,114390.0,2.38520974]
[1759179004071,0.01404,114400.0,114390.0,2.38520974]
[1759179004272,0.0002368,114400.0,114390.0,2.38520974]
[1759179004575,0.0002368,114400.0,114390.0,1.56320974]
[1759179004977,0.0002368,114400.0,114390.0,2.38492974]
[1759179006877,0.0002368,114400.0,114390.0,2.38488974]
[1759179007379,0.0002368,114400.0,114390.0,2.38484974]
[1759179008482,0.0002368,114400.0,114390.0,1.56320974]
[1759179008983,0.0002368,114400.0,114390.0,2.38480974]
[1759179009282,0.0002368,114400.0,114390.0,0.8701274]
[1759179009476,0.0002368,114400.0,114390.0,2.38476974]
[1759179010577,0.0002368,114400.0,114390.0,1.56320974]
[1759179010881,0.0002368,114400.0,114390.0,2.38472974]
[1759179016185,0.0002368,114400.0,114390.0,1.56320974]
[1759179016385,0.0002368,114400.0,114390.0,2.38452974]
[1759179019589,0.0881474,114410.0,114400.0,0.1093018]
[1759179019790,0.0881474,114410.0,114400.0,0.81664297]
[1759179019989,0.0881474,114410.0,114400.0,0.4701018]
[1759179020191,0.1096274,114410.0,114400.0,0.81664297]
[1759179020387,0.0881474,114410.0,114400.0,0.82776297]
[1759179020988,0.0881474,114410.0,114400.0,0.82976297]
[1759179022294,0.1227974,114410.0,114400.0,0.4711018]
[1759179022492,0.1227974,114410.0,114400.0,0.81764297]
[1759179022694,0.1227974,114410.0,114400.0,0.81664297]
[1759179022895,0.1227974,114410.0,114400.0,0.83964297]
[1759179023190,0.0881474,114410.0,114400.0,0.83964297]
[1759179023489,0.0881474,114410.0,114400.0,0.82564297]
[1759179023794,0.1096274,114410.0,114400.0,0.83664297]
[1759179023988,0.0881474,114410.0,114400.0,0.83664297]
[1759179024190,0.1096274,114410.0,114400.0,0.83664297]
[1759179024594,0.1096274,114410.0,114400.0,1.65768297]
[1759179025696,0.1227974,114410.0,114400.0,1.3111418]
[1759179025901,0.1227974,114410.0,114400.0,1.65768297]
[1759179026391,0.0881474,114410.0,114400.0,1.65768297]
[1759179026898,0.0881474,114410.0,114400.0,1.66880297]
[1759179027192,0.1013174,114410.0,114400.0,1.3111418]
[1759179027498,0.1013174,114410.0,114400.0,1.65768297]
[1759179027698,0.0881474,114410.0,114400.0,1.65768297]
[1759179028695,0.0881474,114410.0,114400.0,0.83664297]
[1759179028897,0.1096274,114410.0,114400.0,0.83664297]
[1759179029093,0.1096274,114410.0,114400.0,1.65752297]
[1759179029999,0.1096274,114410.0,114400.0,0.83664297]
[1759179030000,0.1227974,114410.0,114400.0,0.83664297]
[1759179030196,0.1227974,114410.0,114400.0,1.29672297]
[1759179030701,0.1455524,114410.0,114400.0,1.29672297]
[1759179034903,0.1455524,114410.0,114400.0,0.47584297]
[1759179035104,0.1455524,114410.0,114400.0,1.29652297]
[1759179035804,0.1455524,114410.0,114400.0,1.29648297]
[1759179037608,0.1455524,114410.0,114400.0,0.47584297]
[1759179037797,0.1455524,114410.0,114400.0,1.29640297]
[1759179038702,0.1455524,114410.0,114400.0,0.1293018]
[1759179038902,0.1455524,114410.0,114400.0,0.9498218]
[1759179039104,0.49209357,114410.0,114400.0,0.04195]
[1759179039411,0.85289357,114410.0,114400.0,0.04195]
[1759179039606,1.25289357,114410.0,114400.0,0.86247]
[1759179040004,1.25289357,114410.0,114400.0,0.04195]
[1759179040205,1.25289357,114410.0,114400.0,0.86247]
[1759179040410,0.5063524,114410.0,114400.0,0.86247]
[1759179040704,0.85289357,114410.0,114400.0,0.86247]
[1759179041309,1.25289357,114410.0,114400.0,0.02]
[1759179041510,1.25289357,114410.0,114400.0,0.84048]
[1759179041808,0.85289357,114410.0,114400.0,0.84048]
[1759179042309,0.85289357,114410.0,114400.0,0.86243]
[1759179042807,1.25289357,114410.0,114400.0,0.84044]
[1759179043008,1.25289357,114410.0,114400.0,0.02]
[1759179043508,0.9063524,114410.0,114400.0,0.04195]
[1759179044009,0.9063524,114410.0,114400.0,0.1293019]
[1759179044205,0.9063524,114410.0,114400.0,0.04195]
[1759179044408,0.5063524,114410.0,114400.0,0.47584307]
[1759179044608,0.5063524,114410.0,114400.0,0.1293019]
[1759179044808,0.5063524,114410.0,114400.0,0.47584307]
[1759179045404,1.25249357,114410.0,114400.0,0.04195]
[1759179045709,1.25249357,114410.0,114400.0,0.84036]
[1759179045905,1.25249357,114410.0,114400.0,0.86231]
[1759179046210,1.25258644,114410.0,114400.0,0.86231]
[1759179046909,1.25258644,114410.0,114400.0,0.02]
[1759179047608,0.9059524,114410.0,114400.0,0.04195]
[1759179047809,1.25258644,114410.0,114400.0,0.04195]
[1759179048010,1.25258644,114410.0,114400.0,0.02]
[1759179049213,0.099372,114400.0,114390.0,1.25431254]
[1759179049408,0.82956104,114400.0,114390.0,1.25431254]
[1759179050306,0.82875604,114400.0,114390.0,0.45586254]
[1759179050614,0.82875604,114400.0,114390.0,1.27910254]
[1759179051514,0.82875604,114400.0,114390.0,1.28210254]
[1759179051806,0.121322,114400.0,114390.0,1.28210254]
[1759179052718,0.121362,114400.0,114390.0,1.28210254]
[1759179053217,0.121362,114400.0,114390.0,0.46186254]
[1759179053416,0.121362,114400.0,114390.0,1.28202254]
[1759179054811,0.121362,114400.0,114390.0,1.28198254]
[1759179055419,0.121362,114400.0,114390.0,0.9353485]
[1759179055612,0.482162,114400.0,114390.0,1.28198254]
[1759179056317,0.121362,114400.0,114390.0,1.28198254]
[1759179056921,0.121362,114400.0,114390.0,0.9353485]
[1759179057120,0.121362,114400.0,114390.0,0.02787]
[1759179057121,0.82879604,114400.0,114390.0,0.02787]
[1759179057315,0.85157139,114400.0,114390.0,0.37450404]
[1759179057516,0.85157139,114400.0,114390.0,1.19454404]
[1759179058420,0.85157139,114400.0,114390.0,0.37450404]
[1759179058610,0.85157233,114400.0,114390.0,0.84787]
[1759179058816,0.50493829,114400.0,114390.0,1.19450404]
[1759179059112,0.49077233,114400.0,114390.0,1.28186304]
[1759179059314,0.50493829,114400.0,114390.0,1.28186304]
[1759179059517,0.85157233,114400.0,114390.0,0.935229]
[1759179059717,0.85157233,114400.0,114390.0,1.28186304]
[1759179061222,1.19820637,114400.0,114390.0,0.02787]
[1759179061423,1.59820637,114400.0,114390.0,0.006]
[1759179062118,2.41812637,114400.0,114390.0,0.006]
[1759179062422,2.44952105,114400.0,114390.0,0.006]
[1759179062627,0.1223274,114390.0,114380.0,0.43635]
[1759179062825,0.85253773,114390.0,114380.0,0.43635]
[1759179063524,0.85253773,114390.0,114380.0,0.02187]
[1759179066130,0.100385,114380.0,114370.0,1.2680917]
[1759179066325,0.90011133,114380.0,114370.0,1.25392574]
[1759179066526,0.92206133,114380.0,114370.0,0.1092417]
[1759179067829,0.89929898,114380.0,114370.0,0.1092417]
[1759179068023,0.89929898,114380.0,114370.0,0.1122417]
[1759179068328,0.89929898,114380.0,114370.0,0.45887574]
[1759179068528,0.89929898,114380.0,114370.0,0.46187574]
[1759179069531,0.89929898,114380.0,114370.0,0.37450404]
[1759179069733,0.89929898,114380.0,114370.0,0.46187684]
[1759179070733,0.89929898,114380.0,114370.0,0.1152428]
[1759179071329,0.90790943,114380.0,114370.0,0.1152428]
[1759179072438,0.56127539,114380.0,114370.0,0.1152428]
[1759179072732,0.90790943,114380.0,114370.0,0.1152428]
[1759179073235,1.25454347,114380.0,114370.0,0.006]
[1759179073536,1.27729377,114380.0,114370.0,0.006]
[1759179074835,2.49701377,114380.0,114370.0,0.006]
[1759179077429,1.67729377,114380.0,114370.0,0.006]
[1759179077742,2.49697377,114380.0,114370.0,0.006]
[1759179078238,1.80366569,114380.0,114370.0,0.02932]
[1759179078434,2.15029973,114380.0,114370.0,0.02932]
[1759179078627,1.80366569,114380.0,114370.0,0.02932]
[1759179078833,2.49693377,114380.0,114370.0,0.006]
[1759179079227,1.67729377,114380.0,114370.0,0.006]
[1759179079432,2.49693377,114380.0,114370.0,0.006]
[1759179079838,1.67729377,114380.0,114370.0,0.006]
[1759179080034,2.49693377,114380.0,114370.0,0.006]
[1759179082240,1.67729377,114380.0,114370.0,0.006]
[1759179082445,2.49693377,114380.0,114370.0,0.006]
[1759179084737,1.67729377,114380.0,114370.0,0.006]
[1759179084933,2.49677377,114380.0,114370.0,0.006]
[1759179085743,1.67729377,114380.0,114370.0,0.006]
[1759179085944,2.49677377,114380.0,114370.0,0.006]
[1759179086441,2.49677377,114380.0,114370.0,0.0933727]
[1759179086642,2.49677377,114380.0,114370.0,0.006]
[1759179087245,2.49677377,114380.0,114370.0,0.0933732]
[1759179090448,2.49677377,114380.0,114370.0,0.006]
[1759179090851,2.49665377,114380.0,114370.0,0.006]
[1759179091549,2.49665377,114380.0,114370.0,0.0933732]
[1759179094148,0.58402569,114380.0,114370.0,0.1148632]
[1759179094754,1.74989973,114380.0,114370.0,0.1148632]
[1759179095754,2.09653377,114380.0,114370.0,0.1148632]
[1759179096054,2.09653377,114380.0,114370.0,0.1088632]
[1759179096248,1.27729377,114380.0,114370.0,0.1088632]
[1759179096446,0.93065973,114380.0,114370.0,0.1088632]
[1759179096646,1.74985973,114380.0,114370.0,0.1088632]
[1759179096854,1.74985973,114380.0,114370.0,0.45549724]
[1759179098254,1.74977973,114380.0,114370.0,0.45549724]
[1759179098558,1.74977973,114380.0,114370.0,0.1088632]
[1759179098760,1.74977973,114380.0,114370.0,0.45549724]
[1759179098959,2.09641377,114380.0,114370.0,0.1088632]
[1759179099155,1.74977973,114380.0,114370.0,0.45549724]
[1759179101361,1.74977973,114380.0,114370.0,0.1088632]
[1759179101563,1.74977973,114380.0,114370.0,0.45549724]
[1759179101962,1.40314569,114380.0,114370.0,0.45549724]
[1759179102166,1.40314569,114380.0,114370.0,0.1088632]
[1759179102463,1.74977973,114380.0,114370.0,0.45549724]
[1759179102866,0.93065973,114380.0,114370.0,0.45549724]
[1759179103065,1.74104928,114380.0,114370.0,0.45549724]
[1759179104670,1.74104928,114380.0,114370.0,0.1088632]
[1759179104957,1.74104928,114380.0,114370.0,0.45549724]
[1759179107154,0.92204928,114380.0,114370.0,0.45549724]
[1759179107354,1.38008928,114380.0,114370.0,0.45549724]
[1759179108257,1.03345524,114380.0,114370.0,0.1088632]
[1759179112464,0.21461524,114380.0,114370.0,0.1088632]
[1759179112665,1.03329524,114380.0,114370.0,0.1088632]
[1759179113370,0.21461524,114380.0,114370.0,0.1088632]
[1759179113870,1.03325524,114380.0,114370.0,0.1088632]
[1759179115367,0.21461524,114380.0,114370.0,0.1088632]
[1759179115567,1.03317524,114380.0,114370.0,0.1088632]
[1759179117472,1.03309524,114380.0,114370.0,0.1088632]
[1759179118774,0.1236028,114370.0,114360.0,0.1105104]
[1759179118976,0.03623,114360.0,114350.0,0.4713116]
[1759179119177,0.38295949,114360.0,114350.0,0.4713116]
[1759179119477,0.03623,114360.0,114350.0,0.4713116]
[1759179119669,0.1236104,114360.0,114350.0,0.4713116]
[1759179120173,0.1236104,114360.0,114350.0,0.4773116]
[1759179120681,0.1236104,114360.0,114350.0,0.82404109]
[1759179121177,0.1176104,114360.0,114350.0,1.63648109]
[1759179122176,0.1176104,114360.0,114350.0,1.64848109]
[1759179123074,0.10340179,114360.0,114350.0,1.28752109]
[1759179123274,0.11677179,114360.0,114350.0,1.28752109]
[1759179124368,0.11677179,114360.0,114350.0,1.28748109]
[1759179124982,0.11677179,114360.0,114350.0,0.46924109]
[1759179125180,0.11677179,114360.0,114350.0,1.28748109]
[1759179125482,0.11677179,114360.0,114350.0,1.28744109]
[1759179126777,0.11677179,114360.0,114350.0,1.28740109]
[1759179128887,0.12569334,114360.0,114350.0,1.28740109]
[1759179129080,0.12569334,114360.0,114350.0,0.1225116]
[1759179129282,0.48649334,114360.0,114350.0,0.03513]
[1759179129481,0.83322283,114360.0,114350.0,0.85321]
[1759179129784,0.85583796,114360.0,114350.0,0.85321]
[1759179130390,0.85583796,114360.0,114350.0,0.9286005]
[1759179130590,0.50910847,114360.0,114350.0,0.9296005]
[1759179130982,0.11677179,114360.0,114350.0,1.27632999]
[1759179131689,0.01602139,114360.0,114350.0,1.28369999]
[1759179131891,0.01602139,114360.0,114350.0,0.9369705]
[1759179132084,0.01602139,114360.0,114350.0,1.28369999]
[1759179132484,0.10340429,114360.0,114350.0,1.28369999]
[1759179134290,0.10344429,114360.0,114350.0,1.28369999]
[1759179134895,0.01606139,114360.0,114350.0,1.64449999]
[1759179135187,4e-05,114360.0,114350.0,2.04449999]
[1759179135389,4e-05,114360.0,114350.0,2.39122948]
[1759179135699,0.00044,114360.0,114350.0,2.46961029]
[1759179136090,0.0008,114370.0,114360.0,0.1232027]
[1759179136289,0.3608,114390.0,114380.0,0.1231874]
[1759179136494,0.38369,114390.0,114380.0,1.28779689]
[1759179136689,0.38409,114390.0,114380.0,1.28779689]
[1759179137097,0.1106498,114390.0,114380.0,1.28779689]
[1759179137400,0.1234198,114390.0,114380.0,1.20038949]
[1759179137595,0.4842198,114390.0,114380.0,1.28775689]
[1759179137794,0.4842198,114390.0,114380.0,0.9410274]
[1759179137994,0.4842198,114390.0,114380.0,0.46991689]
[1759179138287,0.1394198,114390.0,114380.0,0.02277]
[1759179138489,0.5002198,114390.0,114380.0,0.02277]
[1759179138691,0.1394198,114390.0,114380.0,1.18725949]
[1759179139095,0.5002198,114390.0,114380.0,0.84053]
[1759179140490,0.5002198,114390.0,114380.0,0.9278972]
[1759179140897,0.5002598,114390.0,114380.0,1.27462669]
[1759179141096,0.5002598,114390.0,114380.0,1.18717949]
[1759179141500,0.5002598,114390.0,114380.0,0.36949949]
[1759179141997,0.5002598,114390.0,114380.0,1.18713949]
[1759179142500,0.5002598,114390.0,114380.0,1.18709949]
[1759179142693,0.5002598,114390.0,114380.0,0.84037]
[1759179143095,0.9002598,114390.0,114380.0,0.02277]
[1759179143400,1.24698929,114390.0,114380.0,0.02277]
[1759179144801,1.23598929,114390.0,114380.0,0.02277]
[1759179145402,1.23098929,114390.0,114380.0,0.02277]
[1759179145701,1.23398929,114390.0,114380.0,0.02277]
[1759179149498,0.1211972,114380.0,114370.0,0.02273]
[1759179149701,0.82872669,114380.0,114370.0,0.84009]
[1759179150110,0.82872669,114380.0,114370.0,0.9274649]
[1759179150296,0.4819972,114380.0,114370.0,0.9274649]
[1759179150998,0.4819972,114380.0,114370.0,0.9284649]
[1759179151200,0.55176473,114380.0,114370.0,0.9284649]
[1759179152908,0.55176473,114380.0,114370.0,0.1111049]
[1759179153101,0.55176473,114380.0,114370.0,0.1131049]
[1759179155106,0.55476473,114380.0,114370.0,0.1101049]
[1759179158312,0.46639753,114380.0,114370.0,0.45683439]
[1759179158611,0.55376493,114380.0,114370.0,0.45683439]
[1759179159709,0.55380493,114380.0,114370.0,0.45683439]
[1759179160914,0.46643753,114380.0,114370.0,0.45683439]
[1759179161613,0.46643753,114380.0,114370.0,0.47005439]
[1759179162411,0.48878433,114380.0,114370.0,0.47005439]
[1759179164816,0.57615173,114380.0,114370.0,0.1101049]
[1759179165012,0.57615173,114380.0,114370.0,0.45683439]
[1759179166114,0.57615173,114380.0,114370.0,0.47005439]
[1759179168221,0.57615173,114380.0,114370.0,0.47001469]
[1759179171433,0.21535173,114380.0,114370.0,0.47001469]
[1759179172433,0.21335173,114380.0,114370.0,0.47001469]
[1759179172637,0.22035173,114380.0,114370.0,0.47001469]
[1759179173937,0.21335173,114380.0,114370.0,0.47001469]
[1759179174236,0.21735173,114380.0,114370.0,0.47001469]
[1759179176236,0.21735173,114380.0,114370.0,0.1101049]
[1759179176441,0.57815173,114380.0,114370.0,1.27331469]
[1759179179139,0.57821127,114380.0,114370.0,1.27331469]
[1759179179436,0.57821127,114380.0,114370.0,0.45679469]
[1759179179643,0.57821127,114380.0,114370.0,1.27311469]
[1759179179845,0.92490106,114380.0,114370.0,1.27311469]
[1759179181236,0.57821127,114380.0,114370.0,1.27311469]
[1759179181436,0.21741127,114380.0,114370.0,1.27311469]
[1759179181637,0.03556,114370.0,114360.0,0.0861167]
[1759179181841,0.1229424,114360.0,114350.0,0.52019559]
[1759179182136,0.02237,114360.0,114350.0,1.64827889]
[1759179182443,0.1097524,114360.0,114350.0,1.64827889]
[1759179182938,0.1229424,114360.0,114350.0,1.28747889]
[1759179183946,0.02237,114360.0,114350.0,1.28747889]
[1759179184442,0.1229424,114360.0,114350.0,1.28947889]
[1759179184638,0.1229424,114360.0,114350.0,1.27554889]
[1759179184840,0.1229424,114360.0,114350.0,1.27754889]
[1759179186144,0.1097524,114360.0,114350.0,1.29139889]
[1759179187543,0.1097524,114360.0,114350.0,0.9447091]
[1759179187846,0.1229424,114360.0,114350.0,1.29139889]
[1759179188244,0.02237,114360.0,114350.0,1.99888868]
[1759179188447,0.02237,114370.0,114360.0,0.1200124]
[1759179188747,0.0008,114370.0,114360.0,0.81339198]
[1759179189136,0.55301003,114380.0,114370.0,0.1106848]
[1759179189342,0.57609893,114380.0,114370.0,0.45737459]
[1759179189649,0.57609893,114380.0,114370.0,1.27341459]
[1759179190342,0.57609893,114380.0,114370.0,0.1106848]
[1759179190542,0.92278872,114380.0,114370.0,0.9266448]
[1759179190743,0.57609893,114380.0,114370.0,1.27333459]
[1759179190942,0.57609893,114380.0,114370.0,0.9266448]
[1759179191248,0.47606643,114380.0,114370.0,1.28718459]
[1759179191449,0.45777753,114380.0,114370.0,1.28718459]
[1759179191953,0.55214473,114380.0,114370.0,1.28718459]
[1759179193850,0.55214473,114380.0,114370.0,0.9404948]
[1759179194051,0.55214473,114380.0,114370.0,1.28718459]
[1759179196544,0.55214473,114380.0,114370.0,0.47122459]
[1759179196748,0.55214473,114380.0,114370.0,1.28702459]
[1759179196945,0.10397753,114380.0,114370.0,1.28702459]
[1759179197145,0.19134463,114380.0,114370.0,1.28702459]
[1759179197654,0.10397753,114380.0,114370.0,1.28702459]
[1759179197844,0.10397753,114380.0,114370.0,1.68702459]
[1759179198039,0.19134463,114380.0,114370.0,0.87122459]
[1759179198250,0.20476463,114380.0,114370.0,1.27309459]
[1759179198845,0.55145442,114380.0,114370.0,1.27309459]
[1759179199046,0.54245442,114380.0,114370.0,0.1106848]
[1759179199252,0.54245442,114380.0,114370.0,0.45737459]
[1759179199450,0.54245442,114380.0,114370.0,1.27305459]
[1759179199650,0.54245442,114380.0,114370.0,1.27301459]
[1759179200552,0.56464181,114380.0,114370.0,1.27301459]
[1759179201051,0.56464181,114380.0,114370.0,1.27297459]
[1759179201553,0.56464181,114380.0,114370.0,0.9262848]
[1759179201852,0.56464181,114380.0,114370.0,1.27297459]
[1759179202153,0.56464181,114380.0,114370.0,0.9262848]
[1759179202355,0.56464181,114380.0,114370.0,1.27297459]
[1759179203748,0.56464181,114380.0,114370.0,0.45737459]
[1759179203954,0.92544181,114380.0,114370.0,1.27289459]
[1759179205557,0.92544181,114380.0,114370.0,0.45737459]
[1759179205746,0.92544181,114380.0,114370.0,1.27289459]
[1759179205946,0.92544181,114380.0,114370.0,1.27281459]
[1759179206453,0.92544003,114380.0,114370.0,1.27281459]
[1759179207353,0.57875024,114380.0,114370.0,1.27281459]
[1759179207655,0.92544003,114380.0,114370.0,1.27281459]
[1759179207954,0.57875024,114380.0,114370.0,1.27281459]
[1759179208253,0.92544003,114380.0,114370.0,1.27281459]
[1759179210549,0.90325442,114380.0,114370.0,1.27281459]
[1759179211857,0.55656463,114380.0,114370.0,1.27281459]
[1759179214656,0.55656463,114380.0,114370.0,0.9261248]
[1759179214857,0.55656463,114380.0,114370.0,1.27281459]
[1759179215058,0.55656463,114380.0,114370.0,0.02331]
[1759179215261,0.1221846,114370.0,114360.0,0.51968569]
[1759179215452,0.46887439,114370.0,114360.0,1.33476569]
[1759179215762,0.46887439,114370.0,114360.0,1.68145548]
[1759179216058,0.82967439,114370.0,114360.0,1.68145548]
[1759179216353,0.46887439,114370.0,114360.0,1.68145548]
[1759179216559,0.1221846,114370.0,114360.0,1.68145548]
[1759179216751,0.4829846,114370.0,114360.0,1.68545548]
[1759179217661,0.4829846,114370.0,114360.0,1.68145548]
[1759179217862,0.1221846,114370.0,114360.0,1.68345548]
[1759179218055,0.1221846,114370.0,114360.0,1.68341548]
[1759179219362,0.10797677,114370.0,114360.0,1.68341548]
[1759179219861,0.03481,114370.0,114360.0,1.68341548]
[1759179222666,0.03481,114370.0,114360.0,0.9900359]
[1759179222867,0.03481,114370.0,114360.0,1.68341548]
[1759179223067,0.1221832,114370.0,114360.0,0.86837548]
[1759179223365,0.1221832,114370.0,114360.0,1.68329548]
[1759179225972,0.03481,114370.0,114360.0,1.68329548]
[1759179226268,0.03481,114370.0,114360.0,0.9899159]
[1759179226462,0.1221832,114370.0,114360.0,1.68329548]
[1759179228271,0.1221832,114370.0,114360.0,1.33667101]
[1759179228968,0.1221832,114370.0,114360.0,1.34706101]
[1759179229168,0.1221832,114370.0,114360.0,0.53226101]
[1759179229370,0.1221832,114370.0,114360.0,1.34706101]
[1759179232372,0.1221832,114370.0,114360.0,1.34702101]
[1759179233669,0.1085532,114370.0,114360.0,1.34702101]
[1759179234871,0.02118,114370.0,114360.0,1.34702101]
[1759179235672,0.02118,114370.0,114360.0,0.53226101]
[1759179235873,0.02118,114370.0,114360.0,1.34694101]
[1759179236074,0.1085532,114370.0,114360.0,1.34694101]
[1759179236874,0.1085532,114370.0,114360.0,0.53226101]
[1759179237062,0.1085532,114370.0,114360.0,1.34686101]
[1759179238080,0.1217232,114370.0,114360.0,0.53226101]
[1759179238277,0.1085532,114370.0,114360.0,1.34682101]
[1759179239273,0.1085532,114370.0,114360.0,0.53226101]
[1759179239468,0.1085532,114370.0,114360.0,1.34682101]
[1759179239980,0.1085532,114370.0,114360.0,0.53226101]
[1759179240175,0.1085532,114370.0,114360.0,1.34682101]
[1759179240674,1.22927831,114370.0,114360.0,0.02481]
[1759179240876,1.25167462,114370.0,114360.0,0.83933]
[1759179241077,1.25167462,114370.0,114360.0,0.9267108]
[1759179241771,1.25167462,114370.0,114360.0,0.0893808]
[1759179242678,1.25167462,114370.0,114360.0,0.1113008]
[1759179244683,1.16430142,114370.0,114360.0,0.1113008]
[1759179245787,0.90491951,114370.0,114360.0,0.1113008]
[1759179248768,1.25167462,114370.0,114360.0,0.1113008]
[1759179252180,1.71923951,114370.0,114360.0,0.1113008]
[1759179252380,2.06599462,114370.0,114360.0,0.1113008]
[1759179255484,1.25167462,114370.0,114360.0,0.1113008]
[1759179255680,2.06591462,114370.0,114360.0,0.1113008]
[1759179256391,1.25167462,114370.0,114360.0,0.1113008]
[1759179256583,2.06591462,114370.0,114360.0,0.1113008]
[1759179258090,1.25167462,114370.0,114360.0,0.1113008]
[1759179258290,2.06591462,114370.0,114360.0,0.1113008]
[1759179258597,1.66591462,114370.0,114360.0,0.1113008]
[1759179259992,0.85167462,114370.0,114360.0,0.1113008]
[1759179260290,1.66583462,114370.0,114360.0,0.1113008]
[1759179261995,0.50491951,114370.0,114360.0,0.1113008]
[1759179262294,1.66575462,114370.0,114360.0,0.1113008]
[1759179262498,0.85167462,114370.0,114360.0,0.1113008]
[1759179262698,0.50491951,114370.0,114360.0,0.1113008]
[1759179262891,1.31899951,114370.0,114360.0,0.1113008]
[1759179263092,0.50491951,114370.0,114360.0,0.1113008]
[1759179263294,1.31899951,114370.0,114360.0,0.1113008]
[1759179266595,1.31907186,114370.0,114360.0,0.1113008]
[1759179267602,1.31899186,114370.0,114360.0,0.1113008]
[1759179267802,0.50499186,114370.0,114360.0,0.47118591]
[1759179268499,0.50499186,114370.0,114360.0,0.1244308]
[1759179268695,0.50499186,114370.0,114360.0,0.47118591]
[1759179270903,0.14419186,114370.0,114360.0,0.47118591]
[1759179272899,0.14419186,114370.0,114360.0,0.1244308]
[1759179273199,0.05681866,114370.0,114360.0,0.47118591]
[1759179274001,0.04364866,114370.0,114360.0,1.68498591]
[1759179274801,0.04404866,114370.0,114360.0,1.68498591]
[1759179275006,0.04364866,114370.0,114360.0,1.68498591]
[1759179275206,0.04404866,114370.0,114360.0,1.68498591]
[1759179275900,0.0004,114370.0,114360.0,2.45547596]
[1759179276100,0.06980753,114380.0,114370.0,0.1218432]
[1759179276300,0.09295827,114380.0,114370.0,0.46859831]
[1759179276500,0.11601827,114380.0,114370.0,0.46859831]
[1759179277002,0.09202013,114380.0,114370.0,0.86859831]
[1759179277210,0.06980753,114380.0,114370.0,0.86859831]
[1759179277402,0.09286753,114380.0,114370.0,0.86859831]
[1759179277603,0.09326753,114380.0,114370.0,0.86859831]
[1759179278112,0.09426753,114380.0,114370.0,0.86859831]
[1759179278410,0.09526753,114380.0,114370.0,0.86859831]
[1759179278909,0.07020753,114380.0,114370.0,0.86859831]
[1759179279211,0.07020753,114380.0,114370.0,0.88459831]
[1759179279508,0.07020753,114380.0,114370.0,1.29823831]
[1759179279808,0.07020753,114380.0,114370.0,1.65903831]
[1759179281110,0.07020753,114380.0,114370.0,1.65103831]
[1759179281304,0.07020753,114380.0,114370.0,1.65965887]
[1759179282810,0.07020753,114380.0,114370.0,0.84601887]
[1759179283012,0.07020753,114380.0,114370.0,1.65961887]
[1759179283606,0.07020753,114380.0,114370.0,0.84601887]
[1759179283806,0.07020753,114380.0,114370.0,1.65949887]
[1759179284113,0.07020753,114380.0,114370.0,0.84601887]
[1759179284811,0.07020753,114380.0,114370.0,1.65949887]
[1759179287415,0.15757293,114380.0,114370.0,1.65949887]
[1759179288211,0.19406293,114380.0,114370.0,0.02981]
[1759179288416,1.30161804,114380.0,114370.0,0.008]
[1759179288616,1.32369011,114380.0,114370.0,0.008]